fUST/lending_fUST_20250723
["ID","MTS","AMOUNT","RATE_DAILY","PERIOD"]
[374264228,1753260650928,-500.0,0.00021918,2]
[374264230,1753260650937,-500.0,0.00021946,2]
[374264232,1753260650947,-500.0,0.00021946,2]
[374264234,1753260650956,-500.94168668,0.00021946,2]
[374264236,1753260650966,-500.0,0.00021946,2]
[374264238,1753260650975,-2780.20238376,0.00021969,6]
[374264240,1753260650984,-550.14382085,0.00021973,2]
[374264242,1753260650994,-500.59710166,0.00021973,2]
[374264244,1753260651004,-500.0,0.00021973,2]
[374264246,1753260651013,-500.0,0.00021973,2]
[374264248,1753260651023,-500.0,0.00021973,2]
[374264250,1753260651033,-500.0,0.00021973,2]
[374264252,1753260651042,-500.0,0.00021973,2]
[374264254,1753260651051,-280.22416713,0.00021973,2]
[374264256,1753260651060,-500.0,0.00021973,2]
[374264258,1753260651071,-500.0,0.00021973,2]
[374264260,1753260651079,-503.73116406,0.00021973,2]
[374264262,1753260651089,-566.94637685,0.00021973,2]
[374264263,1753260651098,-500.0,0.00021973,2]
[374264266,1753260651108,-500.0,0.00021973,2]
[374264267,1753260651117,-500.0,0.00021973,2]
[374264269,1753260651126,-505.11833627,0.00021973,2]
[374264271,1753260651136,-500.0,0.00021973,2]
[374264274,1753260651145,-500.0,0.00021973,2]
[374264275,1753260651155,-504.46215061,0.00021973,2]
[374264277,1753260651164,-500.0,0.00021973,2]
[374264279,1753260651173,-500.0,0.00021973,2]
[374264281,1753260651183,-501.37834046,0.00021973,2]
[374264283,1753260651192,-504.7903891,0.00021973,2]
[374264285,1753260651201,-500.0,0.00021973,2]
[374264287,1753260651210,-500.0,0.00021973,2]
[374264289,1753260651219,-500.0,0.00021973,2]
[374264291,1753260651228,-151.0,0.00021973,7]
[374264293,1753260651238,-500.43577641,0.00021975,2]
[374264295,1753260651248,-500.66791734,0.00021975,2]
[374264297,1753260651257,-19392.95,0.00022,2]
[374264299,1753260651266,-692.66,0.00022,7]
[374264301,1753260651275,-1504.73,0.00022,7]
[374264303,1753260651284,-7496.42,0.00022,7]
[374264305,1753260651293,-151.0,0.00022,7]
[374264307,1753260651302,-151.0,0.00022,7]
[374264309,1753260651312,-482.688402,0.00022,7]
[374264311,1753260651322,-482.688402,0.00022,7]
[374264313,1753260651331,-214.67886746,0.00022,7]
[374264315,1753260651341,-12622.36869388,0.00022,7]
[374264317,1753260651351,-160.0,0.00022,7]
[374264319,1753260651360,-460.0,0.00022068,2]
[374264321,1753260651369,-460.0,0.00022068,2]
[374264323,1753260651378,-460.0,0.00022068,2]
[374264325,1753260651387,-1010.05668947,0.000221,2]
[374264327,1753260651397,-2780.20238376,0.00022176,6]
[374264329,1753260651408,-272.39581,0.00022176,7]
[374264331,1753260651418,-272.39581,0.00022176,7]
[374264333,1753260651427,-151.0,0.00022191,7]
[374264335,1753260651437,-777.7,0.00022191,2]
[374264337,1753260651446,-460.0,0.00022191,2]
[374264339,1753260651455,-250.59818072,0.00022191,2]
[374264341,1753260651467,-1219.44,0.00022191,2]
[374264343,1753260651476,-556.0,0.00022191,2]
[374264345,1753260651486,-1829.6,0.00022191,2]
[374264347,1753260651496,-151.0,0.00022191,7]
[374264349,1753260651505,-3282.15,0.00022191,2]
[374264351,1753260651514,-151.0,0.00022191,7]
[374264353,1753260651523,-460.0,0.00022191,2]
[374264355,1753260651533,-460.0,0.00022191,2]
[374264357,1753260651542,-564.16,0.00022191,2]
[374264359,1753260651552,-312.29,0.00022191,2]
[374264361,1753260651564,-460.0,0.00022191,2]
[374264363,1753260651574,-2621.57,0.00022191,2]
[374264364,1753260651585,-460.0,0.00022191,2]
[374264366,1753260651595,-151.0,0.00022191,7]
[374264368,1753260651605,-151.0,0.00022191,7]
[374264370,1753260651615,-1643.25,0.00022191,2]
[374264372,1753260651625,-1352.51,0.00022191,2]
[374264374,1753260651634,-1446.52,0.00022191,2]
[374264376,1753260651646,-489.77,0.00022191,2]
[374264378,1753260651655,-460.0,0.00022191,2]
[374264381,1753260651665,-460.0,0.00022191,2]
[374264383,1753260651674,-644.71,0.00022191,2]
[374264385,1753260651686,-1063.59,0.00022191,2]
[374264387,1753260651695,-1406.38,0.00022191,2]
[374264389,1753260651706,-460.0,0.00022191,2]
[374264391,1753260651715,-1061.1,0.00022191,2]
[374264392,1753260651724,-1928.69,0.00022191,2]
[374264394,1753260651734,-740.5,0.00022191,2]
[374264396,1753260651744,-460.0,0.00022191,2]
[374264397,1753260651753,-460.0,0.00022191,2]
[374264399,1753260651764,-471.12,0.00022191,2]
[374264401,1753260651773,-2139.67,0.00022191,2]
[374264403,1753260651783,-151.0,0.00022191,7]
[374264404,1753260651791,-151.0,0.00022191,7]
[374264406,1753260651801,-4820.06,0.00022191,2]
[374264408,1753260651811,-3475.4,0.00022191,2]
[374264410,1753260651821,-500.0,0.00022191,2]
[374264411,1753260651830,-460.0,0.00022191,2]
[374264413,1753260651839,-778.92,0.00022191,2]
[374264415,1753260651849,-605.64437,0.00022191,7]
[374264416,1753260651859,-679.0,0.00022192,2]
[374264418,1753260651868,-500.0,0.00022192,2]
[374264420,1753260651878,-560.0,0.00022199,2]
[374264422,1753260651887,-460.0,0.00022342,2]
[374264423,1753260651896,-460.0,0.00022342,2]
[374264425,1753260651906,-460.0,0.00022342,2]
[374264427,1753260651915,-360.27,0.00022361,2]
[374264429,1753260651924,-2780.20238376,0.00022383,7]
[374264430,1753260651934,-179.9069,0.00022415,6]
[374264432,1753260651944,-777.7,0.00022465,2]
[374264434,1753260651953,-151.0,0.00022465,7]
[374264436,1753260651963,-553.31168,0.00022465,7]
[374264437,1753260651972,-553.31168,0.00022465,7]
[374264439,1753260651981,-645.755181,0.00022465,7]
[374264441,1753260651990,-645.755181,0.00022465,7]
[374264442,1753260652000,-460.0,0.00022465,2]
[374264444,1753260652011,-151.0,0.00022465,7]
[374264446,1753260652021,-151.0,0.00022465,7]
[374264448,1753260652030,-151.0,0.00022465,7]
[374264449,1753260652039,-1219.44,0.00022465,2]
[374264451,1753260652048,-151.0,0.00022465,7]
[374264453,1753260652058,-151.0,0.00022465,7]
[374264455,1753260652067,-556.0,0.00022465,2]
[374264456,1753260652077,-1829.6,0.00022465,2]
[374264458,1753260652086,-151.0,0.00022465,7]
[374264460,1753260652096,-164.861367,0.00022465,7]
[374264462,1753260652105,-164.861367,0.00022465,7]
[374264463,1753260652115,-3282.15,0.00022465,2]
[374264465,1753260652124,-460.0,0.00022465,2]
[374264467,1753260652133,-607.76,0.00022465,2]
[374264468,1753260652142,-564.16,0.00022465,2]
[374264470,1753260652152,-460.0,0.00022465,2]
[374264472,1753260652161,-2621.57,0.00022465,2]
[374264474,1753260652171,-275.5671523,0.00022465,2]
[374264476,1753260652180,-1643.25,0.00022465,2]
[374264478,1753260652189,-1352.51,0.00022465,2]
[374264479,1753260652199,-1446.52,0.00022465,2]
[374264481,1753260652208,-489.77,0.00022465,2]
[374264483,1753260652217,-250.33087753,0.00022465,2]
[374264509,1753260652513,-150.0,0.00017183,2]
[374264511,1753260652523,-492.5,0.00019452,2]
[374264513,1753260652533,-492.5,0.00019726,2]
[374264515,1753260652542,-492.5,0.0002,2]
[374264516,1753260652552,-492.5,0.00020273,2]
[374264518,1753260652563,-492.5,0.00020547,2]
[374264520,1753260652574,-605.64437,0.00020821,2]
[374264522,1753260652583,-4.2808385,0.00020821,2]
[374264556,1753260652973,-225.89,0.00018745,2]
[374264558,1753260652983,-500.0,0.00019449,2]
[374264560,1753260652992,-373.31655273,0.00019449,2]
[374264561,1753260653002,-338.83,0.00020307,2]
[374264563,1753260653011,-230.93364401,0.00020821,2]
[374264565,1753260653023,-257.28551749,0.00020821,2]
[374264567,1753260653032,-352.24213878,0.00021095,2]
[374264593,1753260653315,-206.07758982,0.000199,2]
[374264594,1753260653325,-206.07758963,0.00020114,2]
[374264596,1753260653335,-140.25786122,0.00021095,2]
[374264598,1753260653345,-492.5,0.00021369,2]
[374264600,1753260653354,-605.64437,0.00021643,2]
[374264602,1753260653364,-492.5,0.00021643,2]
[374264604,1753260653373,-451.77,0.00021869,2]
[374264605,1753260653383,-492.5,0.00021917,2]
[374264607,1753260653392,-183.45224725,0.00022191,7]
[374264609,1753260653404,-422.19212275,0.00022191,7]
[374264611,1753260653413,-492.5,0.00022191,2]
[374264613,1753260653423,-209.66912247,0.00022465,2]
[374264615,1753260653432,-460.0,0.00022465,2]
[374264616,1753260653441,-644.71,0.00022465,2]
[374264618,1753260653451,-1063.59,0.00022465,2]
[374264620,1753260653460,-1406.38,0.00022465,2]
[374264622,1753260653470,-351.789884,0.00022465,2]
[374264624,1753260653479,-1061.1,0.00022465,2]
[374264625,1753260653488,-1928.69,0.00022465,2]
[374264627,1753260653498,-740.5,0.00022465,2]
[374264629,1753260653507,-460.0,0.00022465,2]
[374264631,1753260653517,-460.0,0.00022465,2]
[374264633,1753260653527,-471.12,0.00022465,2]
[374264635,1753260653536,-2139.67,0.00022465,2]
[374264637,1753260653545,-2035.08,0.00022465,2]
[374264638,1753260653555,-4820.06,0.00022465,2]
[374264640,1753260653567,-3475.4,0.00022465,2]
[374264642,1753260653577,-590.22937909,0.00022465,2]
[374264644,1753260653587,-500.0,0.00022465,2]
[374264646,1753260653596,-778.92,0.00022465,2]
[374264648,1753260653607,-492.5,0.00022465,2]
[374264649,1753260653616,-679.0,0.00022466,2]
[374264651,1753260653626,-500.0,0.00022466,2]
[374264653,1753260653636,-18749.48388047,0.0002249,7]
[374264655,1753260653645,-234.87112,0.0002249,7]
[374264657,1753260653654,-234.87112,0.0002249,7]
[374264658,1753260653664,-209.820342,0.0002249,7]
[374264660,1753260653674,-160.0,0.0002249,7]
[374264662,1753260653685,-432.11861321,0.00022494,2]
[374264664,1753260653695,-1000.0,0.00022494,2]
[374264666,1753260653705,-1000.0,0.00022494,2]
[374264668,1753260653715,-151.0,0.00022511,7]
[374264669,1753260653724,-151.0,0.00022511,7]
[374264671,1753260653734,-155.851987,0.00022511,7]
[374264673,1753260653744,-171.64403,0.00022511,7]
[374264675,1753260653753,-171.64403,0.00022511,7]
[374264677,1753260653764,-210.606788,0.00022511,7]
[374264678,1753260653774,-210.606788,0.00022511,7]
[374264680,1753260653784,-500.0,0.00022521,2]
[374264682,1753260653793,-986.99160467,0.00022521,2]
[374264684,1753260653803,-1000.0,0.00022521,2]
[374264686,1753260653811,-1000.0,0.00022521,2]
[374264688,1753260653820,-1000.0,0.00022521,2]
[374264689,1753260653829,-1000.0,0.00022521,2]
[374264691,1753260653839,-1000.0,0.00022521,2]
[374264693,1753260653848,-1004.9755767,0.00022521,2]
[374264695,1753260653858,-1134.8317886,0.00022521,2]
[374264697,1753260653869,-1000.0,0.00022521,2]
[374264699,1753260653878,-501.27535184,0.00022521,2]
[374264700,1753260653887,-200.36388747,0.00022603,2]
[374264702,1753260653897,-460.0,0.00022616,2]
[374264704,1753260653907,-460.0,0.00022616,2]
[374264706,1753260653917,-460.0,0.00022616,2]
[374264708,1753260653927,-151.0,0.00022632,7]
[374264710,1753260653935,-1463.48791482,0.00022639,2]
[374264711,1753260653945,-516.45,0.00022676,3]
[374264714,1753260653959,-179.9069,0.00022685,2]
[374264715,1753260653968,-159.346112,0.00022685,2]
[374264717,1753260653978,-223.0315306,0.0002269,2]
[374264719,1753260653987,-26066.24637723,0.00022739,2]
[374264721,1753260653996,-777.7,0.00022739,2]
[374264723,1753260654006,-460.0,0.00022739,2]
[374264725,1753260654015,-1219.44,0.00022739,2]
[374264726,1753260654023,-556.0,0.00022739,2]
[374264728,1753260654033,-1829.6,0.00022739,2]
[374264730,1753260654042,-3282.15,0.00022739,2]
[374264732,1753260654051,-460.0,0.00022739,2]
[374264734,1753260654061,-564.16,0.00022739,2]
[374264736,1753260654073,-460.0,0.00022739,2]
[374264738,1753260654083,-2621.57,0.00022739,2]
[374264740,1753260654092,-1643.25,0.00022739,2]
[374264741,1753260654101,-1352.51,0.00022739,2]
[374264743,1753260654110,-1446.52,0.00022739,2]
[374264745,1753260654119,-489.77,0.00022739,2]
[374264747,1753260654128,-460.0,0.00022739,2]
[374264749,1753260654138,-460.0,0.00022739,2]
[374264750,1753260654147,-644.71,0.00022739,2]
[374264752,1753260654157,-1063.59,0.00022739,2]
[374264754,1753260654167,-1406.38,0.00022739,2]
[374264756,1753260654176,-1061.1,0.00022739,2]
[374264758,1753260654185,-1928.69,0.00022739,2]
[374264760,1753260654195,-740.5,0.00022739,2]
[374264761,1753260654204,-460.0,0.00022739,2]
[374264763,1753260654213,-460.0,0.00022739,2]
[374264765,1753260654222,-471.12,0.00022739,2]
[374264767,1753260654231,-2139.67,0.00022739,2]
[374264769,1753260654241,-4820.06,0.00022739,2]
[374264770,1753260654251,-3475.4,0.00022739,2]
[374264772,1753260654260,-507.17261158,0.00022739,2]
[374264774,1753260654270,-778.92,0.00022739,2]
[374264776,1753260654280,-492.5,0.00022739,2]
[374264778,1753260654289,-679.0,0.0002274,2]
[374264780,1753260654298,-500.0,0.0002274,2]
[374264781,1753260654308,-660.0,0.00022747,2]
[374264783,1753260654318,-200.0,0.00022776,2]
[374264785,1753260654328,-516.45,0.00022776,2]
[374264787,1753260654338,-516.45,0.00022876,4]
[374264789,1753260654347,-649.677,0.00022879,2]
[374264791,1753260654357,-2157.0,0.00022879,2]
[374264793,1753260654366,-971.991,0.00022879,2]
[374264795,1753260654376,-160.0,0.00022881,3]
[374264796,1753260654385,-602.01020099,0.0002289,2]
[374264797,1753260654395,-460.0,0.0002289,2]
[374264798,1753260654405,-151.0,0.0002289,7]
[374264799,1753260654414,-151.0,0.0002289,7]
[374264800,1753260654425,-482.688402,0.0002289,7]
[374264801,1753260654435,-482.688402,0.0002289,7]
[374264802,1753260654444,-460.0,0.0002289,2]
[374264803,1753260654453,-151.0,0.000229,10]
[374264804,1753260654463,-516.45,0.00022976,3]
[374264805,1753260654473,-5689.0,0.00022978,2]
[374264806,1753260654483,-1504.73,0.00023,7]
[374264807,1753260654494,-7496.42,0.00023,7]
[374264808,1753260654504,-160.0,0.00023,3]
[374264809,1753260654514,-160.0,0.00023,3]
[374264810,1753260654524,-231.11583447,0.00023,3]
[374264811,1753260654534,-160.0,0.00023,2]
[374264812,1753260654543,-160.0,0.00023,3]
[374264813,1753260654553,-215.84326551,0.00023,3]
[374264814,1753260654566,-526.15909479,0.00023,3]
[374264815,1753260654577,-160.0,0.00023,3]
[374264816,1753260654589,-840.06856235,0.00023,3]
[374264817,1753260654600,-151.0,0.00023013,7]
[374264818,1753260654612,-338.485604,0.00023013,7]
[374264819,1753260654622,-338.485604,0.00023013,7]
[374264820,1753260654632,-777.7,0.00023013,2]
[374264821,1753260654643,-460.0,0.00023013,2]
[374264822,1753260654654,-1219.44,0.00023013,2]
[374264823,1753260654666,-556.0,0.00023013,2]
[374264824,1753260654679,-1829.6,0.00023013,2]
[374264825,1753260654691,-151.0,0.00023013,7]
[374264826,1753260654704,-3282.15,0.00023013,2]
[374264827,1753260654717,-151.0,0.00023013,7]
[374264828,1753260654728,-460.0,0.00023013,2]
[374264829,1753260654740,-564.16,0.00023013,2]
[374264831,1753260654751,-460.0,0.00023013,2]
[374264832,1753260654761,-2621.57,0.00023013,2]
[374264833,1753260654773,-151.0,0.00023013,7]
[374264835,1753260654785,-151.0,0.00023013,7]
[374264836,1753260654797,-1643.25,0.00023013,2]
[374264838,1753260654807,-1352.51,0.00023013,2]
[374264839,1753260654818,-1446.52,0.00023013,2]
[374264842,1753260654829,-489.77,0.00023013,2]
[374264843,1753260654841,-460.0,0.00023013,2]
[374264845,1753260654853,-460.0,0.00023013,2]
[374264847,1753260654866,-644.71,0.00023013,2]
[374264849,1753260654878,-1063.59,0.00023013,2]
[374264851,1753260654888,-1406.38,0.00023013,2]
[374264853,1753260654901,-1061.1,0.00023013,2]
[374264855,1753260654913,-740.5,0.00023013,2]
[374264857,1753260654925,-1928.69,0.00023013,2]
[374264859,1753260654937,-460.0,0.00023013,2]
[374264861,1753260654949,-460.0,0.00023013,2]
[374264863,1753260654959,-471.12,0.00023013,2]
[374264865,1753260654970,-2139.67,0.00023013,2]
[374264867,1753260654981,-151.0,0.00023013,7]
[374264869,1753260654992,-151.0,0.00023013,7]
[374264871,1753260655003,-272.39581,0.00023013,7]
[374264873,1753260655015,-272.39581,0.00023013,7]
[374264875,1753260655025,-4820.06,0.00023013,2]
[374264877,1753260655034,-3475.4,0.00023013,2]
[374264879,1753260655045,-778.92,0.00023013,2]
[374264881,1753260655055,-605.64437,0.00023013,7]
[374264883,1753260655067,-605.64437,0.00023013,7]
[374264885,1753260655080,-492.5,0.00023013,2]
[374264887,1753260655090,-679.0,0.00023014,2]
[374264889,1753260655100,-500.0,0.00023014,2]
[374264891,1753260655111,-500.0,0.00023042,2]
[374264893,1753260655122,-500.0,0.00023042,2]
[374264895,1753260655131,-151.0,0.00023059,7]
[374264897,1753260655141,-151.0,0.00023059,7]
[374264899,1753260655152,-5888.0,0.0002306,2]
[374264901,1753260655164,-1500.0,0.00023068,2]
[374264903,1753260655174,-1000.0,0.00023068,2]
[374264905,1753260655183,-1000.0,0.00023068,2]
[374264907,1753260655194,-503.48331735,0.00023068,2]
[374264909,1753260655205,-1500.0,0.00023068,2]
[374264911,1753260655215,-1500.0,0.00023068,2]
[374264913,1753260655225,-516.45,0.00023076,2]
[374264915,1753260655236,-19392.95,0.000231,2]
[374264917,1753260655247,-692.66,0.000231,7]
[374264919,1753260655258,-151.0,0.000231,7]
[374264921,1753260655269,-151.0,0.000231,7]
[374264923,1753260655278,-151.0,0.000231,7]
[374264925,1753260655288,-195.0,0.00023119,2]
[374264927,1753260655298,-460.0,0.00023164,2]
[374264929,1753260655309,-151.0,0.00023164,7]
[374264931,1753260655320,-460.0,0.00023164,2]
[374264933,1753260655330,-151.0,0.00023164,7]
[374264935,1753260655341,-151.0,0.00023164,7]
[374264937,1753260655352,-516.45,0.00023176,7]
[374264939,1753260655363,-160.0,0.00023203,4]
[374264941,1753260655373,-195.0,0.00023221,2]
[374264943,1753260655383,-195.0,0.00023223,2]
[374264945,1753260655394,-195.0,0.0002324,2]
[374264947,1753260655403,-179.9069,0.00023244,6]
[374264949,1753260655414,-159.346112,0.00023244,6]
[374264951,1753260655424,-516.45,0.00023276,6]
[374264953,1753260655435,-151.0,0.00023287,7]
[374264955,1753260655446,-225.120066,0.00023287,7]
[374264957,1753260655457,-151.0,0.00023287,2]
[374264959,1753260655468,-472.88571,0.00023287,7]
[374264961,1753260655479,-472.88571,0.00023287,7]
[374264973,1753260655604,-777.7,0.00023287,2]
[374264975,1753260655616,-460.0,0.00023287,2]
[374264977,1753260655627,-1219.44,0.00023287,2]
[374264979,1753260655638,-556.0,0.00023287,2]
[374264981,1753260655649,-1829.6,0.00023287,2]
[374264983,1753260655660,-3282.15,0.00023287,2]
[374264986,1753260655672,-460.0,0.00023287,2]
[374264988,1753260655682,-564.16,0.00023287,2]
[374264990,1753260655691,-460.0,0.00023287,2]
[374264991,1753260655702,-2621.57,0.00023287,2]
[374264994,1753260655715,-1643.25,0.00023287,2]
[374264995,1753260655726,-1352.51,0.00023287,2]
[374264997,1753260655736,-1446.52,0.00023287,2]
[374265000,1753260655747,-489.77,0.00023287,2]
[374265001,1753260655759,-460.0,0.00023287,2]
[374265003,1753260655771,-460.0,0.00023287,2]
[374265005,1753260655782,-644.71,0.00023287,2]
[374265007,1753260655793,-1063.59,0.00023287,2]
[374265009,1753260655804,-1406.38,0.00023287,2]
[374265011,1753260655815,-1061.1,0.00023287,2]
[374265013,1753260655826,-1928.69,0.00023287,2]
[374265015,1753260655836,-740.5,0.00023287,2]
[374265017,1753260655846,-460.0,0.00023287,2]
[374265019,1753260655857,-460.0,0.00023287,2]
[374265021,1753260655867,-471.12,0.00023287,2]
[374265023,1753260655878,-2139.67,0.00023287,2]
[374265025,1753260655889,-4820.06,0.00023287,2]
[374265027,1753260655900,-151.0,0.00023287,7]
[374265029,1753260655911,-3475.4,0.00023287,2]
[374265031,1753260655921,-778.92,0.00023287,2]
[374265033,1753260655931,-492.5,0.00023287,2]
[374265035,1753260655941,-679.0,0.00023288,2]
[374265037,1753260655952,-500.0,0.00023288,2]
[374265039,1753260655962,-760.0,0.00023295,2]
[374265041,1753260655973,-151.0,0.000233,5]
[374265043,1753260655983,-645.755181,0.00023314,7]
[374265045,1753260655992,-645.755181,0.00023314,7]
[374265047,1753260656002,-151.399161,0.00023314,7]
[374265049,1753260656012,-263.91794536,0.00023315,2]
[374265051,1753260656021,-168.73442408,0.00023315,2]
[374265053,1753260656031,-516.45,0.00023376,3]
[374265055,1753260656040,-195.0,0.00023396,2]
[374265057,1753260656050,-263.91794536,0.00023425,2]
[374265059,1753260656060,-564.71,0.00023431,2]
[374265061,1753260656069,-1211.582047,0.00023438,7]
[374265063,1753260656079,-1211.582047,0.00023438,7]
[374265065,1753260656088,-460.0,0.00023438,2]
[374265067,1753260656097,-553.31168,0.00023438,7]
[374265069,1753260656106,-553.31168,0.00023438,7]
[374265071,1753260656116,-539.1223795,0.00023438,2]
[374265073,1753260656125,-164.861367,0.00023438,7]
[374265075,1753260656134,-164.861367,0.00023438,7]
[374265077,1753260656143,-195.0,0.00023473,2]
[374265079,1753260656153,-516.45,0.00023476,7]
[374265081,1753260656162,-195.0,0.00023483,2]
[374265083,1753260656172,-5689.0,0.00023491,2]
[374265085,1753260656182,-179.9069,0.00023499,2]
[374265087,1753260656191,-159.346112,0.00023499,2]
[374265089,1753260656201,-160.0,0.00023525,5]
[374265090,1753260656210,-263.91794536,0.00023534,2]
[374265092,1753260656221,-195.0,0.00023541,2]
[374265094,1753260656230,-151.0,0.00023561,7]
[374265097,1753260656242,-151.0,0.00023561,7]
[374265099,1753260656251,-151.0,0.00023561,7]
[374265101,1753260656261,-1260.082331,0.00023561,7]
[374265103,1753260656270,-1260.082331,0.00023561,7]
[374265105,1753260656280,-151.0,0.00023561,7]
[374265107,1753260656290,-170.723266,0.00023561,7]
[374265109,1753260656299,-163.92604,0.00023561,7]
[374265110,1753260656310,-163.92604,0.00023561,7]
[374265112,1753260656319,-151.0,0.00023561,7]
[374265114,1753260656329,-234.87112,0.00023561,7]
[374265116,1753260656338,-234.87112,0.00023561,7]
[374265118,1753260656348,-777.7,0.00023561,2]
[374265120,1753260656357,-460.0,0.00023561,2]
[374265122,1753260656366,-1219.44,0.00023561,2]
[374265124,1753260656376,-556.0,0.00023561,2]
[374265126,1753260656386,-1829.6,0.00023561,2]
[374265128,1753260656395,-3282.15,0.00023561,2]
[374265130,1753260656405,-460.0,0.00023561,2]
[374265132,1753260656414,-564.16,0.00023561,2]
[374265134,1753260656424,-330.46,0.00023561,2]
[374265136,1753260656433,-2621.57,0.00023561,2]
[374265138,1753260656442,-1643.25,0.00023561,2]
[374265140,1753260656451,-1352.51,0.00023561,2]
[374265142,1753260656460,-1446.52,0.00023561,2]
[374265144,1753260656470,-489.77,0.00023561,2]
[374265146,1753260656479,-460.0,0.00023561,2]
[374265148,1753260656489,-460.0,0.00023561,2]
[374265150,1753260656499,-644.71,0.00023561,2]
[374265152,1753260656508,-1063.59,0.00023561,2]
[374265154,1753260656517,-1406.38,0.00023561,2]
[374265156,1753260656527,-1928.69,0.00023561,2]
[374265158,1753260656536,-740.5,0.00023561,2]
[374265160,1753260656546,-1061.1,0.00023561,2]
[374265162,1753260656556,-435.5,0.00023561,2]
[374265164,1753260656568,-275.82,0.00023561,2]
[374265166,1753260656578,-471.12,0.00023561,2]
[374265168,1753260656588,-2139.67,0.00023561,2]
[374265170,1753260656599,-272.39581,0.00023561,7]
[374265172,1753260656608,-272.39581,0.00023561,7]
[374265174,1753260656618,-4820.06,0.00023561,2]
[374265176,1753260656628,-3475.4,0.00023561,2]
[374265178,1753260656637,-778.92,0.00023561,2]
[374265180,1753260656648,-492.5,0.00023561,2]
[374265182,1753260656658,-195.0,0.00023561,2]
[374265184,1753260656667,-679.0,0.00023562,2]
[374265186,1753260656677,-500.0,0.00023562,2]
[374265188,1753260656687,-516.45,0.00023576,6]
[374265190,1753260656696,-207.67313731,0.00023616,2]
[374265192,1753260656706,-168.73442408,0.00023616,2]
[374265194,1753260656715,-207.67313733,0.00023616,2]
[374265196,1753260656725,-160.62204863,0.00023616,2]
[374265198,1753260656734,-1024.23450938,0.00023616,2]
[374265200,1753260656744,-848.42586761,0.00023616,2]
[374265202,1753260656753,-510.08324711,0.00023616,2]
[374265204,1753260656763,-263.91794536,0.00023644,2]
[374265206,1753260656772,-500.0,0.00023645,9]
[374265208,1753260656781,-800.0,0.00023647,2]
[374265210,1753260656791,-195.0,0.0002365,2]
[374265212,1753260656801,-516.45,0.00023676,7]
[374265214,1753260656810,-500.0,0.00023704,9]
[374265216,1753260656820,-247.0,0.00023706,2]
[374265218,1753260656830,-460.0,0.00023712,2]
[374265220,1753260656839,-154.23855,0.00023728,7]
[374265222,1753260656848,-151.0,0.00023728,7]
[374265224,1753260656858,-218.87471,0.00023728,7]
[374265226,1753260656867,-1463.48791482,0.00023735,2]
[374265228,1753260656876,-195.0,0.00023736,2]
[374265229,1753260656885,-263.91794536,0.00023753,2]
[374265231,1753260656894,-516.45,0.00023776,2]
[374265233,1753260656904,-151.0,0.00023831,7]
[374265235,1753260656913,-605.64437,0.00023831,7]
[374265237,1753260656922,-605.64437,0.00023831,7]
[374265239,1753260656931,-777.7,0.00023835,2]
[374265241,1753260656941,-151.0,0.00023835,7]